bitfinex-derivatives/quotes_SOLF0:USTF0_20250624
["timestamp","ask_amount","ask_price","bid_price","bid_amount"]
[1750762763283,6.9384,144.04,144.03,2.2190732]
[1750762788020,6.9384,144.03,144.02,2.2190732]
[1750762795830,6.9382,144.04,144.02,2.2190732]
[1750762796031,6.9382,144.04,144.03,2.2190732]
[1750762801044,6.9389,144.02,144.01,34.72]
[1750762801242,2.21948157,144.04,143.99,2.21948157]
[1750762801442,5.12073494,144.03,144.01,2.22016556]
[1750762801638,2.22016556,144.05,144.01,2.22016556]
[1750762801836,5.1206956,144.04,143.98,2.318]
[1750762802035,5.1206955,144.03,144.02,2.22016556]
[1750762802435,6.9384,144.03,144.02,2.22016556]
[1750762803343,6.939,144.02,143.99,6.9401]
[1750762803537,6.939,144.02,144.01,2.22016556]
[1750762803735,6.938,144.06,144.01,2.22016556]
[1750762803934,5.11521848,144.05,144.03,2.22016556]
[1750762804137,6.938,144.04,144.03,2.22016556]
[1750762810758,6.938,144.04,144.03,2.21886271]
[1750762811145,6.938,144.06,144.02,2.21886271]
[1750762811347,6.9389,144.03,144.02,2.21886271]
[1750762818152,6.9389,144.03,144.0,34.6]
[1750762818354,6.9389,144.03,144.02,2.21886271]
[1750762819651,34.64,144.07,144.0,34.6]
[1750762819862,39.20472234,144.18,144.0,34.6]
[1750762819863,13.8714,144.09,144.0,47.45302673]
[1750762820056,2.21886271,144.06,144.01,2.21886271]
[1750762820258,6.9393,144.02,144.01,2.21886271]
[1750762821359,6.9393,144.02,144.0,34.6]
[1750762821560,6.9393,144.02,144.01,2.21886271]
[1750762821762,6.9393,144.02,144.01,2.21953679]
[1750762822861,6.9394,144.01,144.0,36.81953679]
[1750762823048,6.9394,144.01,143.99,2.21953679]
[1750762823255,6.9399,144.0,143.99,2.21953679]
[1750762823455,2.21953679,144.01,143.97,36.81953679]
[1750762823860,2.21953679,144.0,143.96,2.21953679]
[1750762824062,2.21953679,143.99,143.95,2.21953679]
[1750762824564,6.9417,143.97,143.95,2.21953679]
[1750762824757,2.21953679,143.99,143.95,2.21953679]
[1750762824958,2.21953679,143.98,143.94,36.81953679]
[1750762825463,2.21953679,143.98,143.94,2.21953679]
[1750762825664,6.9423,143.95,143.94,2.21953679]
[1750762826056,6.9407,143.99,143.94,2.21953679]
[1750762826367,6.9407,143.99,143.98,2.21953679]
[1750762826960,6.9401,144.0,143.98,2.21953679]
[1750762827158,2.21953679,144.04,143.99,2.21953679]
[1750762827364,5.08918286,144.03,144.0,2.21953679]
[1750762827667,6.9397,144.01,144.0,2.21953679]
[1750762827868,5.08934966,144.03,144.0,2.21953679]
[1750762828063,6.9389,144.02,144.01,2.21953679]
[1750762829062,34.6,144.05,144.01,2.21953679]
[1750762829261,5.08878798,144.04,144.02,2.21953679]
[1750762829463,41.542,144.05,144.02,2.21953679]
[1750762829661,5.08885101,144.04,144.02,2.21953679]
[1750762829869,6.9384,144.03,144.02,2.21953679]
[1750762830468,6.9393,144.02,144.0,3.46802685]
[1750762833463,6.9387,144.03,144.0,3.46802685]
[1750762833665,36.9745,144.08,144.02,3.46802685]
[1750762833977,5.10393962,144.07,144.04,3.46802685]
[1750762834270,6.9378,144.05,144.04,3.46802685]
[1750762836369,34.6,144.08,144.02,3.46802685]
[1750762836370,6.9382,144.04,144.02,3.46802685]
[1750762836563,34.6,144.08,144.01,3.46802685]
[1750762836758,5.10330124,144.07,144.01,3.46802685]
[1750762837071,10.6985699,144.06,144.01,3.46802685]
[1750762837270,5.10338795,144.05,144.01,3.46802685]
[1750762837573,6.9389,144.02,144.01,3.46802685]
[1750762841466,6.9387,144.03,144.01,3.46802685]
[1750762842268,6.9383,144.04,144.01,3.46802685]
[1750762842463,9.1425,144.07,144.01,3.46802685]
[1750762842670,5.10803367,144.06,144.01,3.46802685]
[1750762842869,6.9385,144.03,144.01,10.40742685]
[1750762844274,6.9382,144.04,144.02,6.9388]
[1750762844469,6.9382,144.04,144.03,3.46802685]
[1750762845368,6.9377,144.05,144.03,10.40622685]
[1750762845973,6.9377,144.05,144.03,3.46802685]
[1750762847082,6.942,144.08,144.01,2.4251]
[1750762847387,5.10749733,144.07,144.01,5.89312685]
[1750762847680,5.10749733,144.07,143.97,12.85302673]
[1750762847681,5.11072917,144.06,143.97,12.85302673]
[1750762847877,6.942,144.04,143.97,3.46802685]
[1750762848076,12.05272917,144.03,143.97,10.40932685]
[1750762848279,6.942,144.03,143.97,3.46802685]
[1750762849171,6.942,144.04,143.97,3.46802685]
[1750762849372,12.05382616,144.03,143.97,3.46802685]
[1750762849569,6.942,144.03,143.97,3.46802685]
[1750762849976,6.942,144.03,143.99,3.46802685]
[1750762850369,12.54367092,144.04,143.97,3.46802685]
[1750762850571,12.05322499,144.03,143.97,3.46802685]
[1750762850879,6.942,144.03,143.97,3.46802685]
[1750762851078,6.9404,143.99,143.97,10.40922685]
[1750762851279,6.9404,143.99,143.97,3.46802685]
[1750762852182,6.9401,144.0,143.97,10.40922685]
[1750762852378,6.942,144.03,143.97,3.46802685]
[1750762852977,6.9406,143.99,143.97,3.46802685]
[1750762853381,12.04604058,144.03,143.97,3.46802685]
[1750762853578,6.9406,143.99,143.97,3.46802685]
[1750762853980,6.9406,143.99,143.97,10.40932685]
[1750762854290,6.942,144.03,143.97,3.46802685]
[1750762854479,6.942,144.04,143.99,3.46802685]
[1750762854681,6.9397,144.01,143.99,3.46802685]
[1750762855190,6.942,144.04,143.99,3.46802685]
[1750762855487,6.9391,144.02,143.99,3.46802685]
[1750762855975,6.9391,144.02,143.99,10.40812685]
[1750762856377,6.9395,144.01,143.99,10.40812685]
[1750762857185,6.9392,144.02,143.99,10.40812685]
[1750762857485,6.9392,144.02,143.98,34.54]
[1750762857486,6.9392,144.02,144.01,3.46802685]
[1750762857988,34.54,144.05,143.99,6.9403]
[1750762858181,5.15752724,144.04,143.99,10.40832685]
[1750762858382,34.54,144.05,143.99,10.40832685]
[1750762858586,6.9392,144.02,143.99,10.40832685]
[1750762859087,6.9389,144.03,144.01,3.46802685]
[1750762859878,6.9382,144.04,144.01,3.46802685]
[1750762860082,34.54,144.05,144.01,10.40722685]
[1750762860481,6.9381,144.04,144.01,3.46802685]
[1750762860682,6.9381,144.04,144.02,6.9389]
[1750762861488,41.482,144.08,144.01,10.40722685]
[1750762861690,10.74816754,144.07,144.01,10.40722685]
[1750762861891,6.9384,144.04,144.01,10.40722685]
[1750762862088,6.9384,144.04,144.02,6.9389]
[1750762862289,6.9384,144.04,144.01,3.46802685]
[1750762862793,6.9384,144.04,144.01,10.40702685]
[1750762863094,6.9384,144.04,144.01,3.46802685]
[1750762863296,5.16270721,144.06,144.01,3.46802685]
[1750762863594,41.482,144.08,144.01,3.46802685]
[1750762863797,6.9383,144.04,144.01,10.40702685]
[1750762864891,41.482,144.08,144.01,10.40702685]
[1750762864892,6.9385,144.03,144.01,10.40702685]
[1750762865097,41.482,144.08,144.01,10.40702685]
[1750762865296,5.1625931,144.07,144.01,10.40702685]
[1750762865484,6.9383,144.04,144.01,10.40702685]
[1750762865691,6.9383,144.04,144.02,6.9388]
[1750762865894,6.9377,144.05,144.01,3.46802685]
[1750762866091,6.9377,144.05,144.03,3.46802685]
[1750762866289,34.54,144.08,144.03,3.46802685]
[1750762866695,6.9372,144.06,144.03,3.46802685]
[1750762866991,6.9372,144.06,144.05,3.46802685]
[1750762867989,34.54,144.08,144.05,3.46802685]
[1750762867990,6.9368,144.07,144.05,3.46802685]
[1750762869294,6.942,144.09,144.02,34.52]
[1750762869494,3.46802685,144.07,144.0,3.46802685]
[1750762869690,39.65870338,144.06,144.0,3.46802685]
[1750762869890,6.9385,144.03,144.0,10.40762685]
[1750762870097,34.5,144.06,144.0,3.46802685]
[1750762870303,6.9392,144.02,144.0,3.46802685]
[1750762871101,6.9392,144.02,144.0,10.40792685]
[1750762871306,34.5,144.06,144.0,3.46802685]
[1750762871600,34.5,144.06,143.99,41.4662]
[1750762871601,34.5,144.06,144.03,3.46802685]
[1750762871803,34.5,144.06,143.99,41.4662]
[1750762872103,34.5,144.06,144.03,3.46802685]
[1750762872304,6.938,144.04,144.03,3.46802685]
[1750762872901,6.9377,144.05,144.03,3.46802685]
[1750762873301,6.942,144.08,144.03,3.46802685]
[1750762873495,41.462,144.09,144.03,10.40622685]
[1750762873802,12.1072834,144.08,144.03,3.46802685]
[1750762874003,6.9368,144.07,144.05,3.46802685]
[1750762875301,41.462,144.09,144.03,37.96802685]
[1750762875504,17.72656008,144.08,144.01,3.46802685]
[1750762875702,5.1640321,144.07,144.01,3.46802685]
[1750762875903,6.9387,144.03,144.01,3.46802685]
[1750762876504,6.9383,144.04,144.01,3.46802685]
[1750762876805,6.9383,144.04,144.03,3.46802685]
[1750762879800,6.9378,144.05,144.03,3.46802685]
[1750762880401,6.938,144.04,144.03,3.46802685]
[1750762882812,5.16762364,144.06,144.01,3.46802685]
[1750762883111,6.942,144.08,144.01,10.40732685]
[1750762883310,6.9387,144.03,144.01,3.46802685]
[1750762885609,5.16752377,144.07,144.01,3.46802685]
[1750762885910,6.9389,144.02,144.01,3.46802685]
[1750762890811,24.57377774,144.06,143.99,3.46802685]
[1750762891015,5.09166543,144.05,143.99,3.46802685]
[1750762891215,16.1906,144.06,143.99,3.46802685]
[1750762891418,5.09212391,144.05,143.99,3.46802685]
[1750762891713,16.1906,144.06,143.99,3.46802685]
[1750762891914,5.09249356,144.05,143.99,3.46802685]
[1750762892112,16.1906,144.06,143.99,3.46802685]
[1750762892113,6.9399,144.0,143.99,3.46802685]
[1750762896117,21.11167219,144.06,143.99,3.46802685]
[1750762896316,5.09114484,144.05,144.01,3.46802685]
[1750762896508,21.11259596,144.06,144.01,3.46802685]
[1750762896709,6.9392,144.02,144.01,3.46802685]
[1750762897406,6.9383,144.04,144.01,3.46802685]
[1750762897718,39.58380891,144.07,144.01,3.46802685]
[1750762897919,34.5,144.07,144.01,10.40702685]
[1750762898119,6.9383,144.04,144.01,3.46802685]
[1750762898619,6.9383,144.04,144.03,3.46802685]
[1750762898810,6.9377,144.05,144.03,3.46802685]
[1750762899409,6.9377,144.05,144.03,10.40622685]
[1750762900925,6.938,144.04,144.03,3.46802685]
[1750762903328,6.9377,144.05,144.03,3.46802685]
[1750762906028,6.938,144.04,144.03,3.46802685]
[1750762907329,6.9378,144.05,144.03,3.46802685]
[1750762907829,6.938,144.04,144.03,3.46802685]
[1750762909028,34.5,144.07,144.02,3.46802685]
[1750762909731,10.69725111,144.06,143.99,3.46802685]
[1750762910029,10.69725111,144.05,143.98,37.96802685]
[1750762910227,5.09635229,144.04,143.97,3.46802685]
[1750762910418,55.60784018,144.03,143.97,3.46802685]
[1750762910625,6.9409,143.98,143.97,3.46802685]
[1750762911418,6.9405,143.99,143.97,3.46802685]
[1750762911925,6.9404,143.99,143.97,3.46802685]
[1750762912123,6.9404,143.99,143.96,6.9417]
[1750762912329,6.9404,143.99,143.97,3.46802685]
[1750762912731,6.9409,143.98,143.97,3.46802685]
[1750762913532,6.9405,143.99,143.97,3.46802685]
[1750762914629,6.9409,143.98,143.97,3.46802685]
[1750762915550,6.9413,143.97,143.96,3.46802685]
[1750762916049,6.9411,143.98,143.96,3.46802685]
[1750762916841,6.942,144.02,143.96,3.46802685]
[1750762917641,6.9413,143.98,143.96,3.46802685]
[1750762920646,10.41002685,144.02,143.94,37.96802685]
[1750762920952,20.60912661,144.02,143.94,37.96802685]
[1750762921248,6.9423,143.95,143.94,37.96802685]
[1750762921449,34.5,143.99,143.94,3.46802685]
[1750762921656,6.942,143.96,143.94,3.46802685]
[1750762921844,34.5,143.99,143.94,3.46802685]
[1750762923345,6.942,143.96,143.94,3.46802685]
[1750762923952,6.942,143.96,143.94,10.41072685]
[1750762924649,6.942,143.96,143.94,3.46802685]
[1750762925038,34.5,143.99,143.93,6.943]
[1750762925253,34.5,143.99,143.93,10.41102685]
[1750762925451,34.5,143.99,143.94,6.9427]
[1750762925642,6.9416,143.97,143.95,3.46802685]
[1750762926757,6.9418,143.96,143.95,3.46802685]
[1750762931860,6.9416,143.97,143.95,10.41032685]
[1750762932349,15.04502685,144.02,143.95,10.41032685]
[1750762932350,34.5,144.02,143.95,3.46802685]
[1750762932555,41.442,144.02,143.97,3.46802685]
[1750762933350,6.9406,143.99,143.97,10.40932685]
[1750762933854,6.9409,143.98,143.97,3.46802685]
[1750762934756,6.9416,143.97,143.95,37.96802685]
[1750762934953,41.442,144.02,143.95,37.96802685]
[1750762935357,6.9412,143.98,143.95,44.91002685]
[1750762935555,41.442,144.02,143.95,44.91002685]
[1750762936156,6.9412,143.98,143.95,44.91002685]
[1750762939163,6.9414,143.97,143.95,44.91002685]
[1750762939471,6.9414,143.97,143.95,37.96802685]
[1750762939663,41.442,144.02,143.95,37.96802685]
[1750762939859,6.9418,143.96,143.95,37.96802685]
[1750762940064,6.9418,143.96,143.95,3.46802685]
[1750762942364,6.9424,143.95,143.92,43.792]
[1750762942664,6.9424,143.95,143.94,3.46802685]
[1750762944171,6.9421,143.96,143.94,3.46802685]
[1750762944369,9.59459762,144.01,143.94,3.46802685]
[1750762944572,4.5863,144.01,143.94,3.46802685]
[1750762945368,6.9421,143.96,143.94,3.46802685]
[1750762948464,5.00289354,144.01,143.94,3.46802685]
[1750762948679,34.5,144.02,143.96,3.46802685]
[1750762948966,34.5,144.02,143.96,10.40962685]
[1750762949876,6.9407,143.99,143.96,10.40962685]
[1750762950075,34.5,144.02,143.98,3.46802685]
[1750762950373,6.9401,144.0,143.98,3.46802685]
[1750762954475,34.5,144.05,143.98,3.46802685]
[1750762954676,5.01334894,144.04,144.01,3.46802685]
[1750762954982,34.5,144.05,144.01,3.46802685]
[1750762955164,4.8726318,144.07,144.03,3.46802685]
[1750762955475,5.0121203,144.06,144.03,3.46802685]
[1750762955669,6.9368,144.07,144.05,3.46802685]
[1750762956071,34.48,144.11,144.05,3.46802685]
[1750762956271,5.01140004,144.1,144.07,3.46802685]
[1750762956473,34.48,144.11,144.07,3.46802685]
[1750762956775,6.942,144.1,144.07,3.46802685]
[1750762956976,34.48,144.11,144.07,3.46802685]
[1750762957481,6.9359,144.09,144.07,3.46802685]
[1750762960066,6.936,144.08,144.07,3.46802685]
[1750762960272,6.936,144.08,144.05,3.46802685]
[1750762960984,34.48,144.11,144.05,3.46802685]
[1750762960985,6.9366,144.07,144.05,3.46802685]
[1750762961188,34.48,144.11,144.05,3.46802685]
[1750762962773,6.9369,144.07,144.05,3.46802685]
[1750762963076,34.48,144.11,144.05,3.46802685]
[1750762964385,6.937,144.06,144.05,3.46802685]
[1750762965283,6.9367,144.07,144.05,3.46802685]
[1750762965484,34.48,144.11,144.05,3.46802685]
[1750762965778,41.422,144.11,144.05,3.46802685]
[1750762966082,6.937,144.07,144.05,3.46802685]
[1750762966277,41.422,144.11,144.05,3.46802685]
[1750762966480,6.937,144.06,144.05,3.46802685]
[1750762969189,6.9375,144.05,144.04,37.94802685]
[1750762969581,6.9375,144.05,144.04,34.48]
[1750762970191,6.938,144.04,144.03,3.46802685]
[1750762977282,6.9377,144.05,144.03,3.46802685]
[1750762977990,6.938,144.04,144.03,3.46802685]
[1750762989891,6.938,144.04,144.02,6.9389]
[1750762990099,6.938,144.04,144.03,3.46802685]
[1750762990500,6.9377,144.05,144.03,10.40632685]
[1750762990697,6.9377,144.05,144.04,3.46802685]
[1750762991506,34.46,144.1,144.04,3.46802685]
[1750762991699,41.402,144.1,144.06,3.46802685]
[1750762993109,6.9365,144.07,144.06,3.46802685]
[1750762995306,6.9371,144.06,144.05,3.46802685]
[1750762995502,41.402,144.1,144.05,3.46802685]
[1750762996107,41.402,144.1,144.05,10.40542685]
[1750762996613,6.9367,144.07,144.05,3.46802685]
[1750762997914,41.402,144.1,144.05,3.46802685]
[1750762998808,6.937,144.06,144.03,6.9382]
[1750762999009,41.402,144.1,144.04,3.46802685]
[1750762999612,6.9374,144.06,144.04,3.46802685]
[1750763000305,6.9375,144.05,144.04,3.46802685]
[1750763000607,5.04829361,144.09,144.03,3.46802685]
[1750763000807,5.04829361,144.08,144.03,3.46802685]
[1750763001003,6.9382,144.04,144.03,3.46802685]
[1750763001206,14.09802347,144.09,144.02,34.46]
[1750763001409,10.62999662,144.08,144.01,139.49072685]
[1750763001616,6.9387,144.03,144.01,139.49072685]
[1750763002315,6.9389,144.02,144.01,139.49072685]
[1750763002612,6.9389,144.02,144.01,137.22802685]
[1750763004010,6.9389,144.02,144.01,3.46802685]
[1750763005114,6.9399,144.0,143.99,37.92802685]
[1750763005818,6.9404,143.99,143.98,133.76]
[1750763006819,6.9413,143.97,143.96,34.46]
[1750763008015,6.9413,143.97,143.95,3.46802685]
[1750763012519,6.9418,143.96,143.95,3.46802685]
[1750763013521,6.9416,143.97,143.95,3.46802685]
[1750763016429,6.9418,143.96,143.95,3.46802685]
[1750763017416,6.9416,143.97,143.95,3.46802685]
[1750763018925,6.9416,143.97,143.95,10.41032685]
[1750763019518,34.46,144.02,143.95,10.41032685]
[1750763019519,34.46,144.02,143.96,6.9418]
[1750763019717,34.46,144.02,143.97,3.46802685]
[1750763020113,6.9407,143.99,143.97,3.46802685]
[1750763020313,6.9407,143.99,143.97,10.40932685]
[1750763020520,6.9402,144.0,143.97,10.40932685]
[1750763021931,34.46,144.05,143.99,3.46802685]
[1750763022223,34.46,144.05,144.01,3.46802685]
[1750763022421,34.46,144.08,144.03,3.46802685]
[1750763022925,6.9381,144.04,144.02,3.46802685]
[1750763025030,6.9385,144.03,144.02,3.46802685]
[1750763025220,39.44791427,144.08,144.0,2.3728]
[1750763025530,41.402,144.08,144.0,3.46802685]
[1750763025730,3.46802685,144.07,144.0,3.46802685]
[1750763025930,6.942,144.06,144.0,3.46802685]
[1750763026316,6.942,144.06,144.02,3.46802685]
[1750763027024,6.942,144.07,144.02,3.46802685]
[1750763027224,6.9385,144.03,144.02,3.46802685]
[1750763029730,6.939,144.02,143.99,143.1048]
[1750763029941,6.939,144.02,144.01,3.46802685]
[1750763032133,6.9387,144.03,144.01,3.46802685]
[1750763033131,6.942,144.07,144.01,3.46802685]
[1750763033322,6.942,144.07,144.03,3.46802685]
[1750763035133,6.9379,144.05,144.03,3.46802685]
[1750763035324,6.942,144.07,144.03,3.46802685]
[1750763036435,6.942,144.07,144.01,3.46802685]
[1750763036925,6.9388,144.03,144.01,3.46802685]
[1750763037124,6.942,144.07,144.01,3.46802685]
[1750763037531,6.9387,144.03,144.01,3.46802685]
[1750763038434,6.942,144.07,144.01,3.46802685]
[1750763039236,6.9388,144.03,144.01,3.46802685]
[1750763039431,6.942,144.07,144.0,2.2932]
[1750763039628,6.942,144.07,144.0,5.76122685]
[1750763040239,6.9389,144.03,144.0,12.70102685]
[1750763040735,6.9389,144.03,144.0,5.76122685]
[1750763040929,6.9389,144.03,144.0,12.70072685]
[1750763041832,6.9389,144.03,144.01,3.46802685]
[1750763046038,6.9389,144.03,144.01,10.40742685]
[1750763046740,6.942,144.07,144.01,10.40742685]
[1750763046741,6.9389,144.02,144.01,3.46802685]
[1750763048535,6.9387,144.03,144.01,3.46802685]
[1750763049038,6.9389,144.02,144.01,3.46802685]
[1750763049344,6.9389,144.02,144.0,9.2329]
[1750763049536,6.9389,144.02,144.01,3.46802685]
[1750763051641,6.9389,144.02,144.0,9.2329]
[1750763051642,6.9389,144.02,144.0,12.70092685]
[1750763057244,6.9386,144.03,144.01,6.9394]
[1750763057848,6.9386,144.03,144.0,12.70092685]
[1750763058048,6.9391,144.02,144.0,12.70092685]
[1750763059141,6.9387,144.03,144.0,12.70092685]
[1750763059544,6.9387,144.03,144.01,6.9394]
[1750763060351,6.9387,144.03,144.02,2.21919939]
[1750763062243,6.9382,144.04,144.02,9.15809939]
[1750763062439,6.9382,144.04,144.03,2.21919939]
[1750763062751,5.04771837,144.07,144.03,2.21919939]
[1750763062949,41.402,144.08,144.06,2.21919939]
[1750763063143,34.46,144.08,144.06,2.21919939]
[1750763063344,11.98397048,144.07,144.06,2.21919939]
[1750763063543,5.04747048,144.07,144.05,2.21919939]
[1750763063744,6.937,144.06,144.05,2.21919939]
[1750763064345,6.9375,144.05,144.03,10.40455298]
[1750763064654,39.33390059,144.08,144.04,6.938]
[1750763064954,34.44,144.11,144.05,3.46645298]
[1750763065252,15.50908979,144.1,144.05,3.46645298]
[1750763065445,6.9362,144.08,144.06,6.9368]
[1750763066257,34.44,144.11,144.07,3.46645298]
[1750763066446,10.63462411,144.1,144.07,3.46645298]
[1750763066641,6.9356,144.09,144.07,3.46645298]
[1750763066847,5.58590504,144.1,144.07,3.46645298]
[1750763067153,34.44,144.11,144.07,10.40295298]
[1750763067154,6.9358,144.09,144.07,10.40295298]
[1750763068540,6.9353,144.1,144.07,10.40295298]
[1750763069551,6.9356,144.09,144.07,10.40295298]
[1750763073560,6.936,144.08,144.07,3.46645298]
[1750763073755,34.44,144.11,144.07,3.46645298]
[1750763074150,6.9358,144.09,144.07,3.46645298]
[1750763074855,6.936,144.08,144.07,3.46645298]
[1750763075749,6.936,144.09,144.07,3.46645298]
[1750763075951,34.44,144.11,144.07,3.46645298]
[1750763077954,6.9359,144.09,144.07,3.46645298]
[1750763079361,6.936,144.08,144.07,3.46645298]
[1750763079964,6.9358,144.09,144.07,3.46645298]
[1750763080354,6.9358,144.09,144.07,10.40285298]
[1750763080554,6.942,144.13,144.07,3.46645298]
[1750763080757,6.942,144.13,144.09,3.46645298]
[1750763081662,12.02712697,144.13,144.09,3.46645298]
[1750763082158,6.9348,144.11,144.09,10.40195298]
[1750763082564,6.942,144.13,144.07,34.42]
[1750763082863,6.9356,144.09,144.08,3.46645298]
[1750763086270,9.1594749,144.13,144.08,2.2174749]
[1750763086465,9.1594749,144.13,144.09,2.2174749]
[1750763087764,6.936,144.08,144.07,34.42]
[1750763087970,6.936,144.08,144.07,36.6374749]
[1750763088666,6.942,144.13,144.07,36.6374749]
[1750763088872,6.942,144.13,144.12,2.2174749]
[1750763089263,13.8756,144.13,144.12,2.2174749]
[1750763090760,6.9341,144.12,144.11,2.2174749]
[1750763092775,6.936,144.09,144.07,34.42]
[1750763093068,6.936,144.09,144.08,2.2174749]
[1750763096277,6.936,144.09,144.08,3.46430212]
[1750763099470,5.08633478,144.12,144.06,3.46430212]
[1750763099676,5.08633478,144.12,144.04,3.46430212]
[1750763099677,3.46430212,144.1,144.04,3.46430212]
[1750763099977,6.9397,144.01,144.0,3.46430212]
[1750763100280,34.4,144.05,143.98,37.86430212]
[1750763100970,34.4,144.05,143.98,3.46430212]
[1750763101865,6.9401,144.0,143.98,3.46430212]
[1750763102776,6.9404,143.99,143.98,3.46430212]
[1750763102981,8.54199922,144.04,143.96,37.86430212]
[1750763103173,5.0776971,144.03,143.96,37.86430212]
[1750763103475,6.9409,143.98,143.96,37.86430212]
[1750763103865,6.9409,143.98,143.96,3.46430212]
[1750763106079,34.42,144.0,143.92,3.46430212]
[1750763106281,34.42,144.0,143.88,62.0]
[1750763106282,3.46430212,143.95,143.89,3.46430212]
[1750763106474,37.88430212,143.95,143.89,3.46430212]
[1750763108070,37.88430212,143.95,143.88,133.7]
[1750763108980,34.42,143.95,143.89,3.46430212]
[1750763110977,6.9441,143.92,143.89,3.46430212]
[1750763111573,6.9444,143.91,143.89,3.46430212]
[1750763112275,37.88430212,143.95,143.87,36.8416]
[1750763112470,37.88430212,143.95,143.88,3.46430212]
[1750763113584,6.9457,143.88,143.87,34.52]
[1750763113878,6.9457,143.88,143.86,3.46430212]
[1750763115085,6.9462,143.87,143.86,3.46430212]
[1750763118084,6.9467,143.86,143.85,133.92]
[1750763118287,34.54,143.91,143.85,3.46430212]
[1750763119791,6.9467,143.86,143.85,3.46430212]
[1750763120377,34.54,143.91,143.85,3.46430212]
[1750763120692,6.9464,143.87,143.85,3.46430212]
[1750763120896,34.54,143.91,143.85,3.46430212]
[1750763122482,6.9467,143.86,143.85,3.46430212]
[1750763122977,6.9467,143.86,143.83,5.78570212]
[1750763123800,6.9472,143.85,143.83,5.78570212]
[1750763124487,38.00430212,143.91,143.83,5.78570212]
[1750763124488,6.9469,143.86,143.83,5.78570212]
[1750763124988,6.9472,143.85,143.83,5.78570212]
[1750763127295,6.9472,143.85,143.83,12.73380212]
[1750763127590,34.54,143.91,143.83,5.78570212]
[1750763127790,34.54,143.91,143.87,3.46430212]
[1750763127995,6.9469,143.86,143.85,3.46430212]
[1750763131597,6.9469,143.86,143.82,43.7688]
[1750763131598,38.01620012,143.91,143.79,2.366]
[1750763131902,3.47620012,143.89,143.8,3.47620012]
[1750763132301,3.47765322,143.88,143.8,3.47765322]
[1750763132497,3.47765322,143.88,143.8,10.42695322]
[1750763132696,6.9479,143.84,143.8,3.47765322]
[1750763132897,34.56,143.86,143.82,3.47765322]
[1750763133095,34.56,143.88,143.82,10.42595322]
[1750763133396,6.9473,143.85,143.82,10.42595322]
[1750763134914,38.03765322,143.88,143.82,3.47765322]
[1750763135207,38.03765322,143.88,143.8,38.03765322]
[1750763135402,6.9485,143.83,143.8,44.98695322]
[1750763135602,38.03765322,143.88,143.8,44.98695322]
[1750763135805,6.9486,143.82,143.8,38.03765322]
[1750763136508,6.9491,143.81,143.8,3.47765322]
[1750763138002,6.9498,143.8,143.78,5.71865322]
[1750763138303,6.9498,143.8,143.78,3.47765322]
[1750763139109,6.9498,143.8,143.78,10.42815322]
[1750763139299,6.9493,143.81,143.78,10.42815322]
[1750763139508,34.56,143.84,143.78,10.42815322]
[1750763140811,6.9496,143.8,143.78,3.47765322]
[1750763141703,6.9493,143.81,143.78,10.42815322]
[1750763142709,6.9493,143.81,143.79,6.95]
[1750763143612,16.2859,143.9,143.8,3.47765322]
[1750763143824,16.2859,143.9,143.77,36.9092]
[1750763143825,34.6,143.91,143.85,3.47765322]
[1750763144001,34.6,143.91,143.82,168.78]
[1750763144202,6.9467,143.86,143.85,3.47765322]
[1750763144403,34.6,143.91,143.85,3.47765322]
[1750763144711,6.9464,143.87,143.85,3.47765322]
[1750763146309,6.9467,143.86,143.85,3.47765322]
[1750763146710,39.51725144,143.91,143.85,3.47765322]
[1750763147113,34.6,143.91,143.85,3.47765322]
[1750763147320,39.52991427,143.91,143.85,3.47765322]
[1750763147519,6.9464,143.87,143.85,3.47765322]
[1750763147919,39.52991427,143.91,143.85,3.47765322]
[1750763148412,6.9464,143.87,143.85,3.47765322]
[1750763149323,6.9467,143.86,143.85,3.47765322]
[1750763150023,6.9464,143.87,143.85,3.47765322]
[1750763151121,6.9467,143.86,143.85,3.47765322]
[1750763151515,6.9464,143.87,143.85,3.47765322]
[1750763151716,6.9464,143.87,143.85,10.42465322]